Cogmind - Beta 11 @@@ ROGUE MODE // 2022.04.10 @ 21:22:56 Player: Solanix Result: Destroyed by H-66 Slayer with Gauss Rifle Performance ------------- Evolutions (5) 2500 Regions Visited (10) 2000 Robots Destroyed (66) 330 Value Destroyed (1979) 1979 Prototype IDs (3) 60 Alien Tech Used (0) 0 Bonus (957) 957 TOTAL SCORE: 7826 Bonus ------- High Alert Combat Kills 48 Follower Combat Kills 327 Met Imprinter 300 Was Imprinted 300 Friendly Fire -18 Cogmind --------- Core Integrity 0/1000 Matter 149/300 Energy 99/100 System Corruption 7% Temperature Cool (0) Movement Core (50) Location -5/Upper Caves Parts ------- > --- POWER (1) -------- (None) > --- PROPULSION (5) --- (None) > --- UTILITY (8) ------ Machine Analyzer Enhanced Optical Array 0b10 Decoder Chip [Scout] Improved Targeting Computer System Shield Component Analysis Suite Corruption Screen > --- WEAPON (3) ------- (None) > --- INVENTORY (5) ---- Component Analysis Suite EM Pulse Cannon Improved Remote Datajack Self-destruct Interrupter (50) Peak State ------------ > --- POWER ------------ Angular Momentum Engine > --- PROPULSION ------- Armored Treads Armored Treads Medium Treads Heavy Treads > --- UTILITY ---------- Improved Heat Sink Medium Storage Unit Machine Analyzer Enhanced Optical Array Improved Signal Interpreter 0b10 Decoder Chip [Scout] Improved Targeting Computer Hacking Drone Bay > --- WEAPON ----------- EM Pulse Cannon EM Pulse Cannon Improved Light Cannon > --- INVENTORY -------- Improved Transmission Jammer Component Analysis Suite Z-Drone Bay EM Pulse Cannon Improved Remote Datajack Self-destruct Interrupter [Rating: 69] Favorites ----------- Power Makeshift Power Source Engine Makeshift Power Source Power Core Light Nuclear Core Propulsion Light Treads Treads Light Treads Leg Improved Aluminum Leg Flight Unit Makeshift Flight Unit Utility Improved Targeting Computer Device Hacking Drone Bay Storage Medium Storage Unit Processor Improved Targeting Computer Hackware System Shield Protection Improved Weapon Shielding Weapon Particle Gun Energy Gun Particle Gun Energy Cannon EM Pulse Cannon Ballistic Gun Assault Rifle Ballistic Cannon Improved Light Cannon Special Weapon Improved Remote Datajack Piercing Weapon CR-A16's Pointy Stick Build | -11 -10 -10 -9 -9 -7 -6 -6 -5 -5 -5 ------- Run | Scr Mat Min Mat Min Zio Pro Fac Fac Upp Upp Slots Evolved 10 | . . . 2 . . . 6 2 . . Power . | . . . . . . . . . . . Propulsion 3 | . . . 1 . . . 1 1 . . Utility 6 | . . . 1 . . . 4 1 . . Weapon 1 | . . . . . . . 1 . . . Parts Attached 79 | 7 4 9 10 1 6 4 9 23 5 1 Power 10 | 1 2 1 2 . 1 1 . 2 . . Engine 7 | 1 1 1 2 . 1 1 . . . . Core 3 | . 1 . . . . . . 2 . . Reactor . | . . . . . . . . . . . Propulsion 22 | 2 . 3 3 . 2 3 1 7 1 . Treads 13 | 2 . . 1 . . 3 1 6 . . Leg 8 | . . 3 2 . 2 . . 1 . . Wheel . | . . . . . . . . . . . Hover . | . . . . . . . . . . . Flight 1 | . . . . . . . . . 1 . Utility 29 | 2 2 3 3 1 1 . 7 8 2 . Device 10 | 1 1 . 1 . 1 . 3 2 1 . Storage 3 | 1 1 . . . . . 1 . . . Processor 10 | . . 3 1 . . . 2 3 1 . Hackware 1 | . . . . . . . . 1 . . Protection 5 | . . . 1 1 . . 1 2 . . Artifact . | . . . . . . . . . . . Weapon 18 | 2 . 2 2 . 2 . 1 6 2 1 Energy Gun 6 | 1 . 2 2 . . . . 1 . . Energy Cannon 4 | . . . . . . . 1 2 1 . Ballistic Gun 5 | 1 . . . . . . . 3 1 . Ballistic Cannon 1 | . . . . . 1 . . . . . Launcher . | . . . . . . . . . . . Special Weapon 1 | . . . . . . . . . . 1 Impact Weapon . | . . . . . . . . . . . Slashing Weapon . | . . . . . . . . . . . Piercing Weapon 1 | . . . . . 1 . . . . . Special Melee Weapon . | . . . . . . . . . . . Unidentified Prototypes 3 | . . . . . 1 . 1 . 1 . Parts Lost 35 | . . 5 1 2 . 1 2 17 7 . Power 2 | . . . . 1 . . . 1 . . Propulsion 16 | . . 3 . . . 1 . 7 5 . Utility 9 | . . . . 1 . . 1 5 2 . Weapon 8 | . . 2 1 . . . 1 4 . . Highest Loss Streak 10 | . . 3 1 2 . 1 2 10 3 . To Critical Strikes . | . . . . . . . . . . . Average Slot Usage (%) 88 | . 100 81 97 87 92 99 87 86 59 41 Engine 5 | . 9 5 11 . 3 11 6 3 . . Core 1 | . 4 6 . . . . . 1 . . Treads 12 | . 28 12 9 11 5 3 21 21 11 . Leg 15 | . . 11 22 22 27 29 . 1 . . Device 6 | . 14 2 1 . 8 11 12 5 4 5 Storage 2 | . 14 6 . . . . 1 4 . . Processor 20 | . . 15 22 22 22 22 20 25 33 29 Protection 3 | . . . 8 10 2 . 6 3 . . Energy Gun 10 | . 14 13 20 22 11 11 5 1 . . Energy Cannon 1 | . . . . . . . 5 5 . . Ballistic Gun 2 | . 14 6 . . . . . 1 1 . Ballistic Cannon 3 | . . . . . 5 11 6 4 . . Piercing Weapon 1 | . . . . . 5 . . . . . Naked Turns 71 | . . 71 . . . . . . . . Heaviest Build 42 | 13 20 20 18 16 12 21 40 42 11 5 Greatest Support 70 | 40 40 40 28 26 26 40 48 70 8 3 Greatest Overweight (x) 3 | . . 1 . . . . . . 3 1 Average Overweight (x) . | . . . . . . . . . . . Largest Inventory Capacity 10 | 8 10 10 5 5 5 5 10 10 5 5 Average Capacity 6 | 7 8 7 5 5 5 5 5 9 5 5 Most Carried 10 | 5 10 10 5 5 5 5 5 10 5 4 Average Carried 5 | 2 6 6 4 4 4 5 3 6 4 3 Final Capacity 10 | 8 10 5 5 5 5 5 10 5 5 5 Final Carried 10 | 4 10 3 4 5 5 5 5 5 4 4 Class Distribution -------------------- 66% | Mutant 16% | Scavenger-Mutant 10% | Scavenger-Gunner 5% | Scavenger-Skirmisher Dominant Class ---------------- Mutant | -10/Materials Mutant | -10/Mines Scavenger-Mutant | -9/Materials Mutant | -9/Mines Mutant | -7/Zion Mutant | -6/Proximity Caves Scavenger-Skirmisher | -6/Factory Scavenger-Gunner | -5/Factory Mutant | -5/Upper Caves Mutant | -5/Upper Caves Resources | -11 -10 -10 -9 -9 -7 -6 -6 -5 -5 -5 ----------- Run | Scr Mat Min Mat Min Zio Pro Fac Fac Upp Upp Matter Collected 1592 | 345 130 80 95 10 54 102 152 469 154 1 Remotely . | . . . . . . . . . . . Salvage Created 2458 | 191 377 98 294 110 . 160 576 549 103 . Parts 117 | 15 20 . 20 8 . 8 18 25 3 . Haulers Intercepted 4 | . 1 . . . . . 2 . 1 . Recyclers Shooed 2 | . 1 . . . . . 1 . . . Parts Field Recycled . | . . . . . . . . . . . Retrieved Matter . | . . . . . . . . . . . Parts Self-Destructed 21 | . . . . . . 18 . . 3 . Prevented 1 | . . . . . . 1 . . . . Kills | -11 -10 -10 -9 -9 -7 -6 -6 -5 -5 -5 ------- Run | Scr Mat Min Mat Min Zio Pro Fac Fac Upp Upp Combat Hostiles Destroyed 47 | . 7 4 9 5 . 5 4 13 . . Guns 37 | . 7 4 9 5 . 3 1 8 . . Cannons 10 | . . . . . . 2 3 5 . . Classes Destroyed 12 | 3 4 1 1 . . . 1 2 . . Worker 5 | 1 . . 1 . . . 3 . . . Tunneler 5 | 5 . . . . . . . . . . Hauler 4 | . 1 . . . . . 2 . 1 . Recycler 4 | 1 1 1 . . . . 1 . . . Watcher 5 | . 1 . 1 . . . 1 2 . . Swarmer 18 | . 3 . 6 3 . 2 . 4 . . Grunt 13 | . 4 . . 2 . 3 1 3 . . Duelist 1 | . . . . . . . . 1 . . Sentry 4 | . . . 3 . . . . 1 . . Hunter 6 | . . . . . . . 3 3 . . Programmer 1 | . . . . . . . . 1 . . Assembled 4 | . . 4 . . . . . . . . Best Kill Streak 7 | 2 4 3 4 3 . 2 7 5 1 . Combat Bots Only 5 | . 3 3 3 3 . 2 3 5 . . Max Kills in Single Turn 5 | 1 2 1 1 2 . 1 5 1 1 . Gunslinging 1 | . 1 . . 1 . . . . . . Exploded . | . . . . . . . . . . . Melee . | . . . . . . . . . . . Uniques/NPCs Destroyed . | . . . . . . . . . . . Combat | -11 -10 -10 -9 -9 -7 -6 -6 -5 -5 -5 -------- Run | Scr Mat Min Mat Min Zio Pro Fac Fac Upp Upp Damage Taken 6536 | . 341 656 422 130 . 323 571 2647 1329 117 Core 1405 | . 35 172 19 38 . 78 48 436 462 117 Absorbed by Shields . | . . . . . . . . . . . Redirected to Shielding 308 | . . . . 6 . . 67 235 . . Core Remaining (%) 69 | 100 . 17 . . . 66 94 . . . Volleys Fired 210 | 13 36 23 23 10 . 15 18 67 3 2 Largest 3 | 2 2 2 2 2 . 2 3 3 1 1 Hottest 171 | 70 70 140 131 121 . 104 167 171 90 7 Shots Fired 424 | 26 66 28 41 20 . 30 43 165 3 2 Gun 285 | 26 66 28 41 20 . 15 12 77 . . Cannon 137 | . . . . . . 15 31 88 3 . Launcher . | . . . . . . . . . . . Special 2 | . . . . . . . . . . 2 Kinetic 173 | 13 30 . . . . 15 18 97 . . Thermal 194 | 13 36 28 41 20 . 15 12 26 3 . Explosive . | . . . . . . . . . . . Electromagnetic 55 | . . . . . . . 13 42 . . Robot Hit Streak 17 | 6 7 4 16 6 . 7 11 17 5 7 Robot Miss Streak 8 | 2 4 4 5 2 . 3 2 8 . . Penetration Max 1 | . . . . . . . . 1 . . Secondary Targets 3 | . 1 . . 2 . . . . . . Max Gunslinging Chain 1 | . 1 . . 1 . . . . . . Shots Hit Robots 280 | 15 39 12 24 13 . 20 31 121 3 2 Core Hits 140 | 8 19 8 14 5 . 11 20 53 2 . Critical Kills . | . . . . . . . . . . . Critical Parts Destroyed 4 | 1 1 . . . . . . 2 . . Critical Strikes 13 | 1 4 . 4 1 . . 1 2 . . Burn 8 | . 3 . 4 1 . . . . . . Destroy 4 | 1 1 . . . . . . 2 . . Blast 1 | . . . . . . . 1 . . . Melee Attacks . | . . . . . . . . . . . Impact . | . . . . . . . . . . . Slashing . | . . . . . . . . . . . Piercing . | . . . . . . . . . . . Sneak Attacks . | . . . . . . . . . . . Combat Hostiles . | . . . . . . . . . . . Follow-up Attacks . | . . . . . . . . . . . Damage Inflicted 5416 | 200 544 192 425 196 . 423 1100 2232 104 . Guns 2668 | 200 544 192 422 196 . 149 104 861 . . Cannons 2241 | . . . . . . 274 541 1322 104 . Explosions 503 | . . . . . . . 455 48 . . Melee . | . . . . . . . . . . . Ramming 4 | . . . 3 . . . . 1 . . Kinetic 2253 | 88 268 . . . . 274 255 1368 . . Thermal 2275 | 112 276 192 422 196 . 149 559 265 104 . Explosive 48 | . . . . . . . . 48 . . Electromagnetic 836 | . . . . . . . 286 550 . . Impact . | . . . . . . . . . . . Slashing . | . . . . . . . . . . . Piercing . | . . . . . . . . . . . Highest Corruption 7 | . . . . . . . . 7 7 7 Average Corruption 6 | . . . . . . . . 6 7 7 Corruption Purged . | . . . . . . . . . . . Corruption Blocked . | . . . . . . . . . . . Effects 31 | . . . . . . . . 21 8 2 Message Errors 4 | . . . . . . . . 2 1 1 Matter Fused 10 | . . . . . . . . 6 4 . Heat Flow Errors 2 | . . . . . . . . 2 . . Energy Discharges 2 | . . . . . . . . 1 1 . Data Loss (minor) 6 | . . . . . . . . 5 1 . Data Loss (major) 2 | . . . . . . . . 1 . 1 Misfires 2 | . . . . . . . . 2 . . Alerts 1 | . . . . . . . . . 1 . Weapon Failures 2 | . . . . . . . . 2 . . Overload Shots . | . . . . . . . . . . . Overflow Damage 167 | . . . . . . . 119 48 . . Projectiles 57 | . . . . . . . 9 48 . . Explosions 110 | . . . . . . . 110 . . . Melee . | . . . . . . . . . . . Knockbacks 18 | . . . . . . 4 4 10 . . Impact . | . . . . . . . . . . . Kinetic 16 | . . . . . . 4 3 9 . . Secondary 2 | . . . . . . . 1 1 . . Self-Inflicted Damage 54 | . . . . . . . . 54 . . Shots 1 | . . . . . . . . 1 . . Rammed 1 | . . . . . . . . 1 . . Targets Rammed 3 | . . . 2 . . . . 1 . . Kicked 2 | . . . 2 . . . . . . . Crushed . | . . . . . . . . . . . Highest Temperature 395 | 27 204 313 390 180 . 299 165 395 30 . Average Temperature 102 | 10 67 112 142 68 . 105 74 134 17 . Received Heat Transfer 1210 | . 162 80 72 . . 101 9 261 516 9 Effects 9 | . 2 3 . . . . . 4 . . Shutdowns 1 | . . . . . . . . 1 . . Energy Bleed 1 | . . . . . . . . 1 . . Interference 5 | . 2 3 . . . . . . . . Matter Decay 2 | . . . . . . . . 2 . . Siege Activations . | . . . . . . . . . . . Robots Corrupted 1 | . . . . . . . . 1 . . Combat Hostiles . | . . . . . . . . . . . Parts Fried 6 | . . . . . . . 4 2 . . Impact Corruptions . | . . . . . . . . . . . Robots Melted . | . . . . . . . . . . . Combat Hostiles . | . . . . . . . . . . . Parts Melted 11 | 1 3 . 3 2 . 2 . . . . Heat Transferred 5160 | 333 1036 444 1184 555 . 370 609 518 111 . Parts Sabotaged . | . . . . . . . . . . . Parts Stolen . | . . . . . . . . . . . Parts Stripped . | . . . . . . . . . . . Power Chain Reactions 1 | . . . . . . . 1 . . . Missiles Intercepted . | . . . . . . . . . . . Alert | -11 -10 -10 -9 -9 -7 -6 -6 -5 -5 -5 ------- Run | Scr Mat Min Mat Min Zio Pro Fac Fac Upp Upp Peak Influence 605 | 35 211 76 228 167 . . 605 341 . . Initial 296 | . 22 33 5 67 . . 218 296 . . Average 149 | 16 97 39 114 116 . . 334 246 . . Maximum Alert Level 2 | . 1 . 1 . . . 2 1 . . Low Security (%) 68 | 100 98 100 87 100 . . . 25 . . Level 1 28 | . 1 . 12 . . . 67 74 . . Level 2 3 | . . . . . . . 32 . . . Level 3 . | . . . . . . . . . . . Level 4 . | . . . . . . . . . . . Level 5 . | . . . . . . . . . . . High Security . | . . . . . . . . . . . Max Security . | . . . . . . . . . . . Squads Dispatched 8 | . 1 . 1 1 . . 4 1 . . Investigation 1 | . . . . 1 . . . . . . Extermination 2 | . . . . . . . 1 1 . . Reinforcement 4 | . 1 . 1 . . . 2 . . . Assault 1 | . . . . . . . 1 . . . Garrison . | . . . . . . . . . . . Intercept . | . . . . . . . . . . . Searches Triggered . | . . . . . . . . . . . Construction Impeded 1 | . . . . . . . 1 . . . Haulers Reinforced 1 | . . . . . . . 1 . . . Active Scanning Responses . | . . . . . . . . . . . Cargo Convoy Interrupts . | . . . . . . . . . . . Stealth | -11 -10 -10 -9 -9 -7 -6 -6 -5 -5 -5 --------- Run | Scr Mat Min Mat Min Zio Pro Fac Fac Upp Upp Distress Signals 2 | . 1 . 1 . . . . . . . Communications Jammed . | . . . . . . . . . . . Distress Signals . | . . . . . . . . . . . Times Spotted 140 | . 14 27 17 6 . 16 8 29 15 8 Peak Tracking Total 16 | . 4 16 6 3 . 8 5 7 8 5 Tactical Retreats 19 | . 3 3 1 . . 1 . 5 3 3 Traps | -11 -10 -10 -9 -9 -7 -6 -6 -5 -5 -5 ------- Run | Scr Mat Min Mat Min Zio Pro Fac Fac Upp Upp Traps Triggered 1 | . . . . . . . . 1 . . Indirectly . | . . . . . . . . . . . Trap Hack Attempts . | . . . . . . . . . . . Triggered . | . . . . . . . . . . . Disarmed . | . . . . . . . . . . . Reprogrammed . | . . . . . . . . . . . Reused . | . . . . . . . . . . . Traps Extracted . | . . . . . . . . . . . Installed . | . . . . . . . . . . . Triggered . | . . . . . . . . . . . Machines | -11 -10 -10 -9 -9 -7 -6 -6 -5 -5 -5 ---------- Run | Scr Mat Min Mat Min Zio Pro Fac Fac Upp Upp Machines Disabled 9 | . . . 1 . . . 6 2 . . Max in Single Turn 6 | . . . 1 . . . 6 1 . . Garrison Access 1 | . . . . . . . 1 . . . Machines Sabotaged . | . . . . . . . . . . . Garrisons Compromised . | . . . . . . . . . . . Overloaded Fab Kills . | . . . . . . . . . . . Hacking | -11 -10 -10 -9 -9 -7 -6 -6 -5 -5 -5 --------- Run | Scr Mat Min Mat Min Zio Pro Fac Fac Upp Upp Machines Accessed 10 | . 1 . 4 1 . . 2 2 . . Terminals 3 | . 1 . 2 . . . . . . . Fabricators . | . . . . . . . . . . . Repair Stations 1 | . . . . . . . . 1 . . Recycling Units . | . . . . . . . . . . . Scanalyzers 3 | . . . 2 . . . 1 . . . Garrison Access 2 | . . . . . . . 1 1 . . Total Hacks 27 | . 2 . 17 1 . . 5 2 . . Successful 18 | . . . 14 1 . . 3 . . . Failed 9 | . 2 . 3 . . . 2 2 . . Catastrophic 2 | . 1 . . . . . . 1 . . Database Lockouts . | . . . . . . . . . . . Manual 5 | . . . . . . . 3 2 . . Terminals 8 | . 2 . 6 . . . . . . . Fabricators . | . . . . . . . . . . . Repair Stations 1 | . . . . . . . . 1 . . Recycling Units . | . . . . . . . . . . . Scanalyzers 14 | . . . 11 . . . 3 . . . Garrison Access 3 | . . . . . . . 2 1 . . Terminal Hacks 5 | . . . 4 1 . . . . . . Record 1 | . . . 1 . . . . . . . Robot Analysis 1 | . . . 1 . . . . . . . Open Door 1 | . . . . 1 . . . . . . Branch Access Points 1 | . . . 1 . . . . . . . Emergency Access Points 1 | . . . 1 . . . . . . . Fabricator Hacks . | . . . . . . . . . . . Repair Station Hacks . | . . . . . . . . . . . Recycling Unit Hacks . | . . . . . . . . . . . Scanalyzer 13 | . . . 10 . . . 3 . . . Insert Component 7 | . . . 5 . . . 2 . . . Analyze 6 | . . . 5 . . . 1 . . . Garrison Access Hacks . | . . . . . . . . . . . Unauthorized Hacks . | . . . . . . . . . . . Terminals . | . . . . . . . . . . . Fabricators . | . . . . . . . . . . . Repair Stations . | . . . . . . . . . . . Recycling Units . | . . . . . . . . . . . Scanalyzers . | . . . . . . . . . . . Garrison Access . | . . . . . . . . . . . Data Cores Recovered . | . . . . . . . . . . . Used . | . . . . . . . . . . . Hacking Detections 7 | . 1 . 3 . . . 1 2 . . Full Trace Events 1 | . 1 . . . . . . . . . Feedback Events . | . . . . . . . . . . . Feedback Blocked . | . . . . . . . . . . . Robot Schematics Acquired . | . . . . . . . . . . . Robots Built . | . . . . . . . . . . . Authchips . | . . . . . . . . . . . Time . | . . . . . . . . . . . Total Robot Build Rating . | . . . . . . . . . . . Part Schematics Acquired 6 | . . . 5 . . . 1 . . . Parts Built . | . . . . . . . . . . . Authchips . | . . . . . . . . . . . Time . | . . . . . . . . . . . Total Part Build Rating . | . . . . . . . . . . . Parts Repaired . | . . . . . . . . . . . Time . | . . . . . . . . . . . Parts Recycled . | . . . . . . . . . . . Recycled Matter . | . . . . . . . . . . . Retrieved Matter . | . . . . . . . . . . . Retrieved Components . | . . . . . . . . . . . Parts Scanalyzed 6 | . . . 5 . . . 1 . . . Part Schematics Acquired 6 | . . . 5 . . . 1 . . . Parts Damaged 1 | . . . 1 . . . . . . . Bothacking | -11 -10 -10 -9 -9 -7 -6 -6 -5 -5 -5 ------------ Run | Scr Mat Min Mat Min Zio Pro Fac Fac Upp Upp Used RIF Installer . | . . . . . . . . . . . Robots Hacked . | . . . . . . . . . . . Non-combat . | . . . . . . . . . . . Combat . | . . . . . . . . . . . Robot Hacks Applied . | . . . . . . . . . . . Relay Couplers Released 1 | . . . . . . . 1 . . . Machine Destruction 1 | . . . . . . . 1 . . . Fabnet Peak Effective % . | . . . . . . . . . . . Robots Rewired . | . . . . . . . . . . . Allies Hacked . | . . . . . . . . . . . Hacks Repelled . | . . . . . . . . . . . Allies | -11 -10 -10 -9 -9 -7 -6 -6 -5 -5 -5 -------- Run | Scr Mat Min Mat Min Zio Pro Fac Fac Upp Upp Total Allies 14 | . . 2 . 1 10 . . 1 . . Largest Group 10 | . . 2 . 1 10 10 1 1 . . Highest-Rated Group 321 | . . 38 . 31 321 321 26 28 . . Highest-Rated Ally 40 | . . 31 . 31 40 40 26 28 . . Zionite Dispatches 2 | . . . . . . . 1 1 . . Recon 1 | . . . . . . . 1 . . . Infowar Resupply 1 | . . . . . . . . 1 . . Total Orders 2 | . . . . . . . . 2 . . DROP 1 | . . . . . . . . 1 . . RETURN 1 | . . . . . . . . 1 . . Ally Attacks 71 | . . 18 . . . 53 . . . . Total Damage 1122 | . . 226 . . . 896 . . . . Kills 16 | . . 6 . . . 10 . . . . Allies Corrupted . | . . . . . . . . . . . Allies Melted . | . . . . . . . . . . . Intel | -11 -10 -10 -9 -9 -7 -6 -6 -5 -5 -5 ------- Run | Scr Mat Min Mat Min Zio Pro Fac Fac Upp Upp Robot Analysis Total 1 | . . . 1 . . . . . . . Derelict Logs Recovered 6 | . . 1 . 1 1 2 . . 1 . Drone Launches 1 | . . . . . . . . 1 . . Drone Recoveries 1 | . . . . . . . . 1 . . Decoded 0b10 Intel 14 | . . . . . . . . 14 . . Traps 12 | . . . . . . . . 12 . . Emergency Access 2 | . . . . . . . . 2 . . Exploration | -11 -10 -10 -9 -9 -7 -6 -6 -5 -5 -5 ------------- Run | Scr Mat Min Mat Min Zio Pro Fac Fac Upp Upp Turns Passed 6653 | 244 485 752 539 521 1447 793 398 1045 345 84 Spaces Moved 4869 | 124 221 562 342 400 1179 590 196 541 561 153 Core 809 | 9 . 145 . . . . . 69 433 153 Treads 1274 | 115 221 215 . . . 55 196 472 . . Legs 2658 | . . 202 342 400 1179 535 . . . . Wheels . | . . . . . . . . . . . Hover . | . . . . . . . . . . . Flight 128 | . . . . . . . . . 128 . Fastest Speed 50 | 50 160 50 120 120 120 120 160 50 50 50 Average Speed 118 | 152 160 117 120 120 120 124 164 145 58 51 Slowest Speed 200 | 160 160 190 120 120 120 170 165 160 200 100 Overloaded Moves . | . . . . . . . . . . . Propulsion Burnouts . | . . . . . . . . . . . Robots Hopped . | . . . . . . . . . . . Cave-ins Triggered . | . . . . . . . . . . . Exploration Rate (%) 48 | 8 38 84 39 67 90 70 6 14 88 32 Regions Visited 10 Branch Regions 6 Pre-discovered Areas 3 | . . . . 1 1 1 . . . . Known Exits Taken 3 | . . 1 1 . . . 1 . . . Unknown Exits Taken 7 | 1 1 . . 1 1 1 . 1 1 . Scrap Searched 10 | . . . . . 3 3 . . 3 1 Spaces Dug . | . . . . . . . . . . . Terrain Destroyed 55 | . . . . . . 1 30 24 . . Melee . | . . . . . . . . . . . Projectile 1 | . . . . . . 1 . . . . AOE 54 | . . . . . . . 30 24 . . Terrain Rammed . | . . . . . . . . . . . Walls Destroyed . | . . . . . . . . . . . Machines Disabled . | . . . . . . . . . . . Actions | -11 -10 -10 -9 -9 -7 -6 -6 -5 -5 -5 --------- Run | Scr Mat Min Mat Min Zio Pro Fac Fac Upp Upp Total 5378 | 154 290 624 430 422 1213 619 234 663 572 157 Wait 106 | . 10 27 35 6 10 8 3 7 . . Move 4860 | 123 220 561 341 399 1178 589 195 541 560 153 Hop . | . . . . . . . . . . . Pick Up 77 | 11 13 4 11 4 8 . 8 17 1 . Fast Attach 23 | . . 2 3 . 4 4 . 7 3 . Attach 47 | 7 3 6 5 1 . . 7 15 2 1 Detach 1 | . . . . . . . . . . 1 Swap 10 | . 1 1 2 . 2 . 2 1 1 . Drop 42 | . 7 . 8 2 11 3 1 8 2 . Fire 210 | 13 36 23 23 10 . 15 18 67 3 2 Melee . | . . . . . . . . . . . Ram . | . . . . . . . . . . . Kick 2 | . . . 2 . . . . . . . Crush . | . . . . . . . . . . . Escape Stasis . | . . . . . . . . . . . Rewire . | . . . . . . . . . . . Trap . | . . . . . . . . . . . Miscellaneous . | . . . . . . . . . . . Route ------- -11/Scrapyard -10/Materials -10/Mines -9/Materials -9/Mines (discovered 3 exits: [*Mat x2] / *Zio) -7/Zion -6/Proximity Caves -6/Factory (discovered 2 exits: *Fac / Ext) -5/Factory -5/Upper Caves -5/Upper Caves History --------- Turn | Location | Event 8 | -11/Scrapyard | Discovered new exit (range 16) 245 | -11/Scrapyard | Entered Materials 303 | -10/Materials | Build established: Mutant 681 | -10/Materials | Discovered new exit (range 13) 730 | -10/Materials | Entered Mines 841 | -10/Mines | Discovered new exit (range 9) 863 | -10/Mines | Identified exit to Materials 1053 | -10/Mines | Assembled infested the area 1057 | -10/Mines | Learned 2 Materials zone layouts 1076 | -10/Mines | Released all parts (4) 1107 | -10/Mines | Lost 3 parts (2n1w) 1454 | -10/Mines | Core integrity fell below 50% 1462 | -10/Mines | Build established: Scavenger-Mutant 1472 | -10/Mines | Core integrity fell below 20% 1482 | -10/Mines | Entered Materials 1482 | -9/Materials | Evolved 2 slots: Propulsion x1, Utility x1 1839 | -9/Materials | Identified exit to Mines 2021 | -9/Materials | Entered Mines 2060 | -9/Mines | Met a Derelict bent on vengeance 2083 | -9/Mines | Discovered new exit (range 9) 2092 | -9/Mines | Met a Derelict shopkeep closing up shop 2147 | -9/Mines | Found a hidden stash of uninstalled traps 2174 | -9/Mines | Learned location of Storage (-7) 2246 | -9/Mines | Build established: Mutant 2414 | -9/Mines | Found a damaged Exp. Sensor Array with a note attached 2417 | -9/Mines | Found Prototype Device 2463 | -9/Mines | Discovered new exit (range 10) 2469 | -9/Mines | A Derelict revealed a hidden shortcut to a safe place 2498 | -9/Mines | Received a Mining Laser from a helpful Derelict 2542 | -9/Mines | Entered Zion 2542 | -7/Zion | Accompanied by 1 ally 2551 | -7/Zion | Given A8's code to call for help 2579 | -7/Zion | Found CR-A16's Pointy Stick 2648 | -7/Zion | Learned Factory security intel 2804 | -7/Zion | Given the Hacking Drone Bay 2807 | -7/Zion | Found Prototype Device 2856 | -7/Zion | Identified Hacking Drone Bay 2910 | -7/Zion | Found GAL Module 3090 | -7/Zion | Gained Derelict followers 3223 | -7/Zion | Learned location of Recycling (-7) 3632 | -7/Zion | Imprinted 3635 | -7/Zion | Declared Zion's savior 3966 | -7/Zion | Discovered new exit (range 7) 3989 | -7/Zion | Entered Proximity Caves 3989 | -6/Proximity Caves | Accompanied by 10 allies 4617 | -6/Proximity Caves | Discovered new exit (range 17) 4782 | -6/Proximity Caves | Entered Factory 4782 | -6/Factory | Accompanied by 1 ally 4782 | -6/Factory | Evolved 6 slots: Propulsion x1, Utility x4, Weapon x1 4783 | -6/Factory | Identified exit to Extension 4876 | -6/Factory | Zion Recon squad teleported in 4895 | -6/Factory | Identified Exp. Sensor Array 5009 | -6/Factory | Discovered new exit (range 15) 5075 | -6/Factory | Build established: Scavenger-Skirmisher 5178 | -6/Factory | Identified exit to Factory 5180 | -6/Factory | Entered another Factory area 5180 | -5/Factory | Evolved 2 slots: Propulsion x1, Utility x1 5472 | -5/Factory | Zion Infowar Resupply teleported in 5689 | -5/Factory | Lost 3 parts (2n1u) 5765 | -5/Factory | Lost 3 parts (1n2w) 6187 | -5/Factory | Lost 10 parts (4n4u2w) 6219 | -5/Factory | Discovered new exit (range 11) 6225 | -5/Factory | Entered Upper Caves 6361 | -5/Upper Caves | Core integrity fell below 50% 6401 | -5/Upper Caves | Lost 3 parts (3n) 6401 | -5/Upper Caves | Learned Factory security intel 6492 | -5/Upper Caves | Attacked by a faux Warlord 6523 | -5/Upper Caves | Core integrity fell below 20% 6555 | -5/Upper Caves | Lost 3 parts (1n2u) 6563 | -5/Upper Caves | Discovered new exit (range 13) 6570 | -5/Upper Caves | Entered another Upper Caves area 6654 | -5/Upper Caves | Destroyed by H-66 Slayer with Gauss Rifle Last Messages --------------- 06524_ Targeting Computer destroyed. 06540_ System corrupted: Matter fused (-6). 06563_ EXIT=FOUND 06567_ Slug penetrates Wall. LOCATION=UNKNOWN GOAL=ESCAPE 06571_ Y2-2YI(k) breaks down the debris. 06571_ Acquired 1 matter. 06571_ RS-7QW(k) breaks down the debris. 06573_ DB-6S9(k) breaks down the debris. 06592_ Searching scrap... 06592_ Found Hcp. Storage Unit. 06592_ Found Imp. Reaction Control System. 06592_ Found 14 Matter. 06607_ %DKC9M>XZYDUP|R&JKVLOK&2Z,SD=R3 06630_ G-50 Soldier system offline. 06644_ System corrupted: Substantial component data lost. 06654_ Penetrated by Slug. [Achievement: Just Browsing] [Achievement: Achiever] Map ----- +----------------------------------------------------+ | #???# #??# """""" #### | | #???## ##### " #???? | | ##????# ### """ " #???? | | ###???## #?#### " "" " #??? | | ###### #????# ####$ " " "" #####??? | | ## #????# #??# " " " "" #??????? | | # #????# #??# " " #?????? | | ## ##?### #### " #?????? | | ?##### ## ! ?????? | | ????## %= ????? | | ????# ## ### ## ???? | | ????# #### #?## ## #?# ###??? | | ????# ## ##??# #??## ## #??##????? | | ????##?## ##??# #???# ### ????????? | | ????????## #??# #???# #####? ????????? | | ?????????### #### #???#####????? ###????????? | | ???????????### # ## #????????????? ???????????? | | ?????????????# #????????????? ???????????? | | ?????????????#### #?????????????##???????????? | | ????????????????## ##?????????????????????????? | | ????????????????## #?????????????????????????? | | ????????????????# ####??????????????????????? | | ????????????????# ### #??????????????????????? | | ????????????????####?#### #??????????????????????? | | ?????????????????????#### ####### h #?????????? | | ?????????????????????# @ h #??????????? | | ?????????????????????# ######## h#???????????? | | ?????????????????????#???????????????????????????? | | ?????????????????????????????????????????????????? | | ?????????????????????????????????????????????????? | | ?????????????????????????????????????????????????? | | ?????????????????????????????????????????????????? | | ?????????????????????????????????????????????????? | | ?????????????????????????????????????????????????? | | ?????????????????????????????????????????????????? | | ?????????????????????????????????????????????????? | | ?????????????????????????????????????????????????? | | ?????????????????????????????????????????????????? | | ?????????????????????????????????????????????????? | | ?????????????????????????????????????????????????? | | ?????????????????????????????????????????????????? | | ?????????????????????????????????????????????????? | | ?????????????????????????????????????????????????? | | ?????????????????????????????????????????????????? | | ?????????????????????????????????????????????????? | | ?????????????????????????????????????????????????? | | ?????????????????????????????????????????????????? | | ?????????????????????????????????????????????????? | | ?????????????????????????????????????????????????? | | ?????????????????????????????????????????????????? | +----------------------------------------------------+ Best States ------------- Heat Dissipation 54 Energy Generation 18 Energy Capacity 300 Matter Stores 300 Matter Capacity 300 Sight Range 22 Robot Scan Range 15 Terrain Scan Density 10 Corruption Block 7 Armor Coverage 225 Weapon Shielding 66 Evasion (%) 55 Targeting Accuracy 11 Recoil Reduction 2 Defensive Hacking 10 Item Schematics ----------------- Lgt. Treads | -9/Materials | Scanalyzed Lgt. Ion Engine | -9/Materials | Scanalyzed Sml. Matter Pod | -9/Materials | Scanalyzed Lgt. Assault Rifle | -9/Materials | Scanalyzed Heat Sink | -9/Materials | Scanalyzed EM Pulse Cannon | -6/Factory | Scanalyzed Robot Schematics ------------------ None Fabricated ------------ Nothing Alien Tech Used ----------------- None Achievements -------------- Achiever I Survived The Infestation Just Browsing The More The Merrier Challenges ------------ None Game ------ Seed TransmissionPhysicsThrower Manual? 0 Play Time 02:13:17 Cumulative 33.0 hours Start 2022.04.09 @ 22:01:37 End 2022.04.10 @ 21:22:56 Sessions 3 Manual Loads 0 Difficulty Rogue Special Mode None Game No. 20 Rogue 20 Adventurer 0 Explorer 0 Win Type - Total 1 Types 1/0/0/0/0/0/0/0/0 Lore% 30 Gallery% 25 Achievement% 25 Wizard Run 0 Options --------- ASCII 0 Keyboard 0 Movement Mouse Keybinds 0 Fullscreen 1 Font 18/SmallcapsGlow Map View 76x50 Tactical HUD 1 Map Filters NONE Filters NONE Steam 1 RUN: 9279c2b3-6224-4a17-80b8-f1da8d0130f0